bitfinex/quotes_SOLUSD_20240729
["timestamp","ask_amount","ask_price","bid_price","bid_amount"]
[1722268891378,41.29220546,187.09,186.99,15.4678]
[1722268891379,5.3462,187.05,186.99,15.4678]
[1722268891588,5.3476,187.0,186.95,16.5224]
[1722268891880,27.28,187.06,186.95,16.5224]
[1722268891881,27.28,187.03,186.95,16.5224]
[1722268892181,0.17,187.02,186.95,16.5224]
[1722268892382,5.3479,186.99,186.95,16.5224]
[1722268892785,40.8172,187.03,186.95,16.5224]
[1722268892989,0.17,187.02,186.95,16.5224]
[1722268893183,5.517,187.02,186.96,1.06971047]
[1722268893400,5.3464,187.05,186.96,13.3717]
[1722268893710,5.3464,187.05,186.96,18.7201]
[1722268894006,5.3465,187.04,186.96,13.3717]
[1722268894215,41.29220546,187.09,186.97,5.3484]
[1722268894409,5.3465,187.04,186.96,13.3717]
[1722268894596,5.3467,187.03,186.96,13.3717]
[1722268894794,5.3467,187.03,186.95,21.8714]
[1722268895122,5.3464,187.04,186.96,5.3487]
[1722268895328,5.3464,187.04,186.95,21.8713]
[1722268895480,5.3475,187.01,186.95,16.5224]
[1722268895685,13.5355,187.05,186.95,16.5224]
[1722268895906,27.28,187.03,186.95,16.5224]
[1722268896105,5.3479,186.99,186.95,16.5224]
[1722268896500,5.3483,186.98,186.95,16.5224]
[1722268896721,5.3485,186.97,186.9,16.5121]
[1722268896888,5.3482,186.98,186.9,16.5121]
[1722268897083,0.34,187.02,186.91,6.41972525]
[1722268897586,0.34,187.02,186.91,5.35]
[1722268898008,0.34,187.02,186.91,6.41970248]
[1722268898507,5.3475,187.01,186.92,5.3497]
[1722268898713,0.17,187.0,186.92,1.06970278]
[1722268898899,0.17,187.0,186.91,13.3753]
[1722268899293,5.3484,186.98,186.9,21.8623]
[1722268899544,0.17,187.0,186.92,5.3497]
[1722268900001,0.17,187.0,186.93,5.3494]
[1722268900324,2.33091815,187.02,186.94,5.3492]
[1722268900491,0.17,187.03,186.94,5.3492]
[1722268900689,0.17,187.03,186.93,13.3734]
[1722268900904,5.3459,187.06,186.98,5.3481]
[1722268901099,13.3618,187.1,186.99,5.3478]
[1722268901324,5.3462,187.05,186.98,13.3702]
[1722268901524,5.3464,187.04,186.96,5.3485]
[1722268901724,8.55180924,187.09,186.97,45.0]
[1722268901926,5.3464,187.05,186.97,45.0]
[1722268902116,5.3465,187.04,186.97,45.0]
[1722268902500,45.5138,187.08,186.95,16.2281]
[1722268902811,0.34,187.07,186.96,45.0]
[1722268903011,5.3463,187.05,186.97,5.3481]
[1722268903207,5.3458,187.07,186.98,1.06930347]
[1722268903408,40.6412,187.11,187.0,5.3475]
[1722268903640,5.345,187.09,187.01,18.7151]
[1722268903840,8.36707336,187.14,187.02,16.78286534]
[1722268904132,8.36707336,187.14,187.03,45.0]
[1722268904133,7.62420546,187.14,187.03,45.0]
[1722268904433,7.62420546,187.14,187.07,5.3455]
[1722268905131,7.62420546,187.14,187.06,18.7104]
[1722268905334,12.96800546,187.14,187.07,45.0]
[1722268905628,7.62420546,187.14,187.03,18.7134]
[1722268905812,7.62420546,187.14,187.04,45.0]
[1722268906009,5.3438,187.13,187.04,45.0]
[1722268906315,7.62420546,187.14,187.04,45.0]
[1722268906522,5.3452,187.09,187.02,15.7138]
[1722268906733,27.28,187.13,187.02,15.7138]
[1722268906734,5.3453,187.08,187.02,15.7138]
[1722268908045,5.3456,187.07,187.02,15.7138]
[1722268908920,5.3459,187.06,187.02,15.7138]
[1722268909130,5.345,187.09,187.02,15.7138]
[1722268909335,0.17,187.1,187.02,15.7138]
[1722268910006,5.3461,187.06,187.02,15.7138]
[1722268910402,5.3455,187.08,187.02,15.7138]
[1722268910635,5.3456,187.07,187.02,15.7138]
[1722268910821,5.3461,187.06,187.02,15.7138]
[1722268911009,0.17,187.08,187.02,15.7138]
[1722268911010,5.3461,187.05,187.02,15.7138]
[1722268911529,5.3461,187.05,186.98,15.1625]
[1722268911706,5.3458,187.07,186.98,28.5323]
[1722268911906,0.17,187.08,187.01,5.3472]
[1722268912112,5.3452,187.09,187.01,5.3472]
[1722268912513,5.3462,187.05,186.98,28.5323]
[1722268912920,5.3461,187.05,186.98,33.8804]
[1722268913219,0.34,187.08,186.98,15.1625]
[1722268913220,5.3464,187.04,186.98,15.1625]
[1722268915040,5.3467,187.03,186.98,15.1625]
[1722268915414,5.347,187.02,186.98,15.1625]
[1722268915633,0.17,187.05,186.98,15.1625]
[1722268916140,58.06249887,187.06,186.93,15.9282]
[1722268916337,65.68670433,187.06,186.93,15.9282]
[1722268916516,77.15,187.05,186.93,15.9282]
[1722268916716,5.3476,187.0,186.93,15.9282]
[1722268916923,5.3472,187.02,186.93,15.9282]
[1722268917137,0.17,187.01,186.94,5.3492]
[1722268917312,5.5173,187.01,186.93,21.2777]
[1722268917839,5.5173,187.01,186.94,5.3492]
[1722268918042,5.5173,187.01,186.93,21.2777]
[1722268918352,0.17,187.01,186.94,1.0695917]
[1722268918644,5.5175,187.01,186.94,1.0695917]
[1722268918942,5.3476,187.0,186.94,1.0695917]
[1722268919345,5.3479,186.99,186.93,15.9282]
[1722268919718,7.74771402,187.06,186.93,15.9282]
[1722268919916,37.72249887,187.06,186.95,5.3489]
[1722268920116,37.72249887,187.06,186.96,1.06959446]
[1722268920323,5.3471,187.02,186.96,1.06959446]
[1722268920531,37.72249887,187.06,186.95,13.372]
[1722268920838,2.09480472,187.07,186.96,45.0]
[1722268921143,5.3467,187.04,186.96,5.3486]
[1722268921518,37.72578875,187.08,186.96,5.3486]
[1722268921843,37.72578875,187.08,186.95,13.372]
[1722268921844,5.3462,187.05,186.97,45.0]
[1722268922013,5.3458,187.06,186.97,13.3705]
[1722268922217,5.3458,187.06,186.98,45.0]
[1722268922420,5.3461,187.05,186.97,18.7187]
[1722268922747,37.72270758,187.08,186.93,29.3015]
[1722268922916,5.3467,187.03,186.95,5.3489]
[1722268923118,5.3467,187.03,186.94,45.0]
[1722268923119,5.3463,187.05,186.96,13.3718]
[1722268923322,0.17,187.06,186.97,45.0]
[1722268923525,5.3461,187.05,186.98,5.3481]
[1722268923720,0.34,187.07,186.97,45.0]
[1722268923955,5.3458,187.07,186.99,5.3478]
[1722268924257,7.62420546,187.08,186.98,5.3481]
[1722268924460,5.3458,187.06,186.97,45.0]
[1722268924767,7.62420546,187.08,186.98,5.348]
[1722268925127,5.3461,187.06,186.98,5.348]
[1722268925321,5.3464,187.04,186.97,45.0]
[1722268925554,5.3468,187.03,186.96,13.3718]
[1722268925723,5.3464,187.04,186.96,18.7204]
[1722268926361,7.62420546,187.08,186.99,13.3694]
[1722268926530,0.17,187.07,186.99,13.3694]
[1722268926725,5.57199429,187.11,186.99,14.43864454]
[1722268926926,5.3449,187.1,187.02,5.3468]
[1722268927456,20.98450546,187.13,187.01,19.7066]
[1722268927657,5.343,187.16,187.08,5.345]
[1722268927868,6.2635,187.19,187.04,1.0687086]
[1722268928162,6.2635,187.19,187.07,5.3453]
[1722268928325,6.2635,187.19,187.08,45.0]
[1722268929246,5.3432,187.16,187.08,45.0]
[1722268929565,5.3434,187.15,187.08,45.0]
[1722268929852,5.343,187.17,187.08,45.0]
[1722268930035,5.343,187.16,187.08,45.0]
[1722268930558,35.54049881,187.19,187.03,29.9765]
[1722268930740,5.3441,187.13,187.05,5.3461]
[1722268930950,5.3441,187.12,187.04,50.3464]
[1722268931161,13.3567,187.18,187.04,45.0]
[1722268931472,13.3567,187.18,187.05,5.3459]
[1722268931473,5.3439,187.13,187.05,5.3459]
[1722268931645,5.3436,187.14,187.06,5.3458]
[1722268931851,0.34,187.17,187.07,6.41425076]
[1722268931852,5.5133,187.15,187.07,6.41425076]
[1722268932053,35.54049881,187.19,187.08,50.3452]
[1722268932254,5.343,187.16,187.08,50.3452]
[1722268932457,5.3433,187.15,187.08,45.0]
[1722268932662,5.3433,187.15,187.07,45.0]
[1722268932855,5.3435,187.14,187.06,18.7103]
[1722268933053,48.89649881,187.19,187.04,5.3461]
[1722268933264,40.5579,187.16,187.05,1.06892247]
[1722268933464,5.3442,187.12,187.05,1.06892247]
[1722268933648,5.3442,187.12,187.04,5.3464]
[1722268933973,5.3438,187.14,187.05,5.346]
[1722268934139,5.3421,187.2,187.12,5.344]
[1722268934340,2.15453169,187.22,187.13,16.59274634]
[1722268934644,5.3413,187.22,187.14,5.3435]
[1722268934841,6.117,187.24,187.14,5.3435]
[1722268934842,6.117,187.24,187.15,1.06839264]
[1722268935037,6.117,187.24,187.17,5.3427]
[1722268935241,5.3411,187.23,187.15,5.343]
[1722268935448,27.2,187.26,187.14,13.3588]
[1722268935641,5.341,187.23,187.16,5.3429]
[1722268935862,5.341,187.23,187.17,1.06831403]
[1722268936564,5.3415,187.21,187.15,45.0]
[1722268937076,5.3413,187.22,187.16,1.06831737]
[1722268937364,5.3413,187.22,187.15,45.0]
[1722268937365,13.3512,187.25,187.15,45.0]
[1722268937568,13.3512,187.25,187.14,45.0]
[1722268938361,0.17,187.24,187.14,45.0]
[1722268938675,5.3422,187.19,187.13,15.5242]
[1722268939056,5.3426,187.18,187.13,15.5242]
[1722268939247,13.3553,187.2,187.13,15.5242]
[1722268939592,5.3433,187.15,187.13,15.5242]
[1722268939778,0.17,187.19,187.13,15.5242]
[1722268939779,5.3429,187.17,187.13,15.5242]
[1722268939951,5.3424,187.18,187.13,15.5242]
[1722268940276,5.5122,187.19,187.14,1.06864349]
[1722268940477,5.3422,187.19,187.14,1.06864349]
[1722268940650,0.17,187.21,187.13,15.5242]
[1722268940849,5.343,187.16,187.13,15.5242]
[1722268941071,5.3427,187.17,187.13,15.5242]
[1722268941273,0.34,187.22,187.07,15.647]
[1722268941274,5.3439,187.13,187.07,15.647]
[1722268941445,0.17,187.18,187.07,15.647]
[1722268941446,5.3443,187.12,187.07,15.647]
[1722268941655,13.3573,187.17,187.07,15.647]
[1722268941849,5.3433,187.15,187.07,20.9925]
[1722268942064,5.3432,187.16,187.08,5.345]
[1722268942261,5.3433,187.15,187.09,1.06873645]
[1722268942463,5.343,187.17,187.07,29.0107]
[1722268942760,6.3518,187.2,187.1,5.3447]
[1722268942966,0.34,187.19,187.1,5.3447]
[1722268943161,0.34,187.19,187.08,45.0]
[1722268943345,5.3432,187.16,187.08,50.3452]
[1722268943549,5.3427,187.18,187.09,5.3448]
[1722268943749,5.3427,187.17,187.09,5.3448]
[1722268944056,5.343,187.16,187.08,50.3452]
[1722268944256,5.3434,187.15,187.08,45.0]
[1722268944461,13.3562,187.18,187.07,15.647]
[1722268944774,13.3588,187.15,187.07,15.647]
[1722268944959,5.3441,187.13,187.07,15.647]
[1722268945467,5.3436,187.14,187.08,1.06885395]
[1722268945666,5.3433,187.15,187.07,15.647]
[1722268945865,5.3435,187.14,187.08,1.06878826]
[1722268946068,5.3439,187.13,187.07,15.647]
[1722268946277,5.3436,187.14,187.07,15.647]
[1722268946583,5.3439,187.13,187.07,15.647]
[1722268946950,0.17,187.17,187.07,15.647]
[1722268947270,19.4842,187.25,187.08,46.06871234]
[1722268947465,5.3424,187.18,187.11,13.3604]
[1722268947671,57.1879908,187.25,187.13,5.3438]
[1722268947977,5.3423,187.19,187.11,18.7046]
[1722268948189,15.46825071,187.23,187.09,1.06850327]
[1722268948480,5.3427,187.17,187.09,5.3449]
[1722268948675,5.3425,187.18,187.1,50.3446]
[1722268948861,5.3428,187.17,187.09,5.3449]
[1722268949380,47.61825071,187.23,187.1,45.0]
[1722268949381,5.3432,187.16,187.1,45.0]
[1722268949770,5.3427,187.17,187.09,50.3449]
[1722268950984,5.3423,187.19,187.12,5.3441]
[1722268951163,5.5119,187.2,187.12,5.3441]
[1722268951364,5.3422,187.19,187.11,5.3444]
[1722268951566,5.3425,187.18,187.1,5.3446]
[1722268951877,5.3422,187.19,187.11,5.3444]
[1722268952184,5.3424,187.18,187.11,5.3444]
[1722268952385,5.3424,187.18,187.1,5.3446]
[1722268952680,5.343,187.16,187.09,13.3619]
[1722268953060,39.1821888,187.2,187.07,15.647]
[1722268953266,32.15,187.18,187.07,15.647]
[1722268953468,5.3435,187.15,187.07,15.647]
[1722268953668,5.5136,187.14,187.07,15.647]
[1722268953894,5.3436,187.14,187.07,15.647]
[1722268954876,5.3439,187.13,187.07,15.647]
[1722268955384,0.17,187.15,187.07,15.647]
[1722268955385,0.17,187.12,187.07,15.647]
[1722268955571,0.17,187.14,187.07,15.647]
[1722268955770,0.34,187.15,187.07,15.647]
[1722268956069,5.3438,187.13,187.08,1.06901444]
[1722268956388,5.3441,187.12,187.07,15.647]
[1722268957103,5.3438,187.14,187.08,1.06896924]
[1722268957391,5.3438,187.14,187.07,15.647]
[1722268957392,0.17,187.13,187.07,15.647]
[1722268957589,0.17,187.13,187.07,16.71593599]
[1722268957786,5.3435,187.15,187.08,1.06893599]
[1722268957961,25.5136,187.14,187.08,1.06893599]
[1722268958360,25.5136,187.14,187.07,15.647]
[1722268958361,5.3439,187.13,187.07,15.647]
[1722268958797,5.3439,187.13,187.08,1.06886775]
[1722268959289,5.3439,187.13,187.07,15.647]
[1722268959496,5.3442,187.12,187.07,15.647]
[1722268960381,5.3446,187.11,187.07,15.647]
[1722268960585,5.3442,187.12,187.07,15.647]
[1722268960781,0.17,187.14,187.07,15.647]
[1722268961089,5.3453,187.08,187.07,15.647]
[1722268961296,13.6995,187.14,187.01,15.3433]
[1722268961498,20.0,187.13,187.01,20.6905]
[1722268961663,0.34,187.12,187.01,20.6905]
[1722268961992,5.3453,187.08,187.01,15.3433]
[1722268962496,5.345,187.09,187.01,20.6905]
[1722268962869,0.17,187.1,187.01,28.7109]
[1722268963601,39.81768708,187.16,187.04,13.3656]
[1722268963766,39.81768708,187.16,187.04,14.43454025]
[1722268963968,5.3438,187.14,187.06,5.3457]
[1722268964191,20.0,187.13,187.06,5.3457]
[1722268964371,25.3439,187.13,187.05,5.3461]
[1722268964976,5.3441,187.12,187.05,5.3461]
[1722268965288,5.3445,187.11,187.04,13.3656]
[1722268965793,5.3442,187.12,187.04,18.7119]
[1722268965981,5.3444,187.11,187.04,13.3656]
[1722268966169,25.3441,187.13,187.04,18.712]
[1722268966479,13.3548,187.2,187.07,16.2813]
[1722268966682,36.6787,187.22,187.08,52.6301626]
[1722268966880,5.3418,187.2,187.12,5.3438]
[1722268967192,13.3524,187.24,187.1,1.06849199]
[1722268967499,13.3524,187.24,187.1,51.41309199]
[1722268967500,5.3424,187.18,187.1,51.41309199]
[1722268967795,13.3524,187.24,187.11,45.0]
[1722268967979,5.3422,187.19,187.11,50.3444]
[1722268968371,5.3422,187.19,187.12,1.06848945]
[1722268968574,15.45314246,187.24,187.11,45.0]
[1722268968575,5.3425,187.18,187.11,45.0]
[1722268970090,5.3427,187.17,187.11,45.0]
[1722268970286,5.3427,187.17,187.1,45.0]
[1722268970491,5.3433,187.15,187.08,6.5615]
[1722268970687,5.3431,187.16,187.09,45.0]
[1722268970893,13.354,187.21,187.09,45.0]
[1722268971199,13.3561,187.18,187.08,6.5615]
[1722268971388,20.0,187.17,187.08,6.5615]
[1722268971571,5.3432,187.16,187.08,11.9068]
[1722268971770,20.34,187.2,187.08,6.5615]
[1722268971981,5.3435,187.15,187.08,6.5615]
[1722268972483,5.3428,187.17,187.09,5.3449]
[1722268972983,5.343,187.16,187.08,11.9068]
[1722268973181,5.343,187.16,187.09,45.0]
[1722268973988,5.3427,187.17,187.09,50.3449]
[1722268974170,5.3439,187.13,187.09,45.0]
[1722268974376,13.5261,187.18,187.08,6.5615]
[1722268974682,5.3436,187.14,187.08,6.5615]
[1722268974875,5.3433,187.15,187.08,6.5615]
[1722268975394,5.3433,187.15,187.09,1.06869084]
[1722268975777,5.3433,187.15,187.08,11.9067]
[1722268975993,25.3427,187.17,187.09,5.3448]
[1722268976288,18.9138208,187.25,187.14,15.4584]
[1722268976490,6.2733,187.27,187.17,5.3424]
[1722268976688,29.6862,187.28,187.18,5.3424]
[1722268976689,5.3404,187.25,187.18,5.3424]
[1722268977003,5.3402,187.26,187.19,45.0]
[1722268977176,6.8621888,187.29,187.19,45.0]
[1722268977177,5.3405,187.25,187.19,45.0]
[1722268977376,5.3402,187.26,187.18,50.3424]
[1722268977892,6.8621888,187.29,187.18,58.3555]
[1722268978081,1.1079,187.3,187.19,35.3503]
[1722268978402,1.1079,187.3,187.2,46.2378548]
[1722268978604,1.1079,187.3,187.22,5.341]
[1722268978605,6.4472,187.3,187.22,5.341]
[1722268978901,5.3393,187.29,187.23,45.0]
[1722268979304,5.3393,187.29,187.22,45.0]
[1722268979475,5.3396,187.28,187.22,45.0]
[1722268979985,1.1079,187.3,187.24,5.3406]
[1722268980184,1.1079,187.3,187.25,45.0]
[1722268980373,1.1079,187.3,187.26,21.8074]
[1722268980575,1.1079,187.3,187.27,50.3398]
[1722268980780,1.1079,187.3,187.28,1.06763935]
[1722268981194,1.1079,187.3,187.29,1.06759422]
[1722268981397,1.1079,187.3,187.29,5.3393]
[1722268981576,1.1079,187.3,187.29,45.0]
[1722268981795,1.1079,187.3,187.27,46.06756846]
[1722268981969,1.1079,187.3,187.27,50.3396]
[1722268982375,1.1079,187.3,187.27,45.0]
[1722268983193,1.1079,187.3,187.26,16.4674]
[1722268984500,1.1079,187.3,187.26,21.8073]
[1722268984801,1.1079,187.3,187.29,5.3393]
[1722268984990,1.1079,187.3,187.29,50.3393]
[1722268985594,1.1079,187.3,187.29,51.40677423]
[1722268986285,1.1079,187.3,187.29,71.40677423]
[1722268986497,1.1079,187.3,187.29,51.40677423]
[1722268986700,1.1079,187.3,187.29,50.3393]
[1722268988497,1.1079,187.3,187.29,45.0]
[1722268988706,1.1079,187.3,187.28,45.0]
[1722268989087,1.1079,187.3,187.29,5.3393]
[1722268989287,1.1079,187.3,187.29,51.4067631]
[1722268991121,1.1079,187.3,187.29,45.0]
[1722268991317,1.1079,187.3,187.28,45.0]
[1722268991620,1.1079,187.3,187.28,21.0675624]
[1722268991799,1.1079,187.3,187.29,5.3393]
[1722268991989,1.1079,187.3,187.29,5.5093]
[1722268992712,0.7645621,187.32,187.31,20.0]
[1722268992894,0.7645621,187.32,187.31,84.92270727]
[1722268993397,0.7645621,187.32,187.31,83.6855]
[1722268993927,0.7645621,187.32,187.31,83.8555]
[1722268994428,6.2788,187.45,187.38,5.3366]
[1722268994636,11.6136,187.45,187.37,13.3425]
[1722268994918,5.3341,187.47,187.39,5.3364]
[1722268995125,5.3341,187.47,187.38,45.0]
[1722268995126,6.8621888,187.48,187.4,13.3398]
[1722268995294,12.1960888,187.48,187.4,18.6759]
[1722268995500,5.3342,187.47,187.4,13.3398]
[1722268995706,7.3413621,187.5,187.4,13.3398]
[1722268996316,5.3342,187.47,187.4,13.3398]
[1722268996498,5.3339,187.48,187.4,18.6759]
[1722268997202,5.3341,187.47,187.4,13.3398]
[1722268997415,5.3339,187.48,187.4,18.6759]
[1722268997604,5.3339,187.48,187.41,45.0]
[1722268998001,5.3342,187.47,187.41,45.0]
[1722268998217,5.3342,187.47,187.4,45.0]
[1722268998718,7.3413621,187.5,187.41,15.1329]
[1722268998899,20.0,187.49,187.42,45.0]
[1722268999097,0.7645621,187.5,187.44,18.6721]
[1722268999316,0.7645621,187.5,187.44,13.3372]
[1722268999512,0.7645621,187.5,187.44,34.40384412]
[1722268999827,0.7645621,187.5,187.48,5.3337]
[1722269000117,0.7645621,187.5,187.49,5.3336]
[1722269000421,0.7645621,187.5,187.49,50.3336]
[1722269000802,0.7645621,187.5,187.49,45.0]
[1722269001104,0.7645621,187.5,187.43,13.3377]
[1722269001411,0.7645621,187.5,187.4,20.0]
[1722269001597,0.7645621,187.5,187.39,13.3404]
[1722269001798,5.3338,187.49,187.41,20.4687]
[1722269002215,0.7645621,187.5,187.42,13.3388]
[1722269002423,0.7645621,187.5,187.45,13.3367]
[1722269002722,5.3338,187.49,187.41,33.8077]
[1722269002932,0.7645621,187.5,187.41,15.1329]
[1722269003418,20.7645621,187.5,187.42,20.0]
[1722269003621,0.7645621,187.5,187.42,20.0]
[1722269003798,0.7645621,187.5,187.45,5.3344]
[1722269004004,0.7645621,187.5,187.45,20.0]
[1722269004199,0.7645621,187.5,187.48,5.3337]
[1722269004629,0.7645621,187.5,187.47,18.6693]
[1722269004822,0.7645621,187.5,187.48,45.0]
[1722269005200,0.7645621,187.5,187.48,50.3338]
[1722269006329,0.7645621,187.5,187.49,22.65962082]
[1722269006502,0.7645621,187.5,187.49,87.99962082]
[1722269006712,0.7645621,187.5,187.49,86.9332]
[1722269006915,0.7645621,187.5,187.49,86.5932]
[1722269007110,6.0306,187.64,187.49,82.49581111]
[1722269007316,6.0306,187.64,187.5,58.5028]
[1722269007533,5.3308,187.59,187.51,5.333]
[1722269007834,5.3304,187.6,187.53,5.3324]
[1722269008039,5.3304,187.6,187.54,45.0]
[1722269008233,8.1686742,187.64,187.47,13.3354]
[1722269008534,13.3241,187.63,187.51,5.3329]
[1722269008729,5.3311,187.58,187.5,18.6665]
[1722269008935,5.3307,187.59,187.51,5.3329]
[1722269009236,5.331,187.58,187.5,13.3332]
[1722269009406,20.0,187.62,187.47,20.0]
[1722269009407,5.3319,187.55,187.47,20.0]
[1722269009613,5.3319,187.55,187.48,5.3338]
[1722269009813,0.17,187.59,187.49,25.3334]
[1722269009814,5.3314,187.57,187.49,25.3334]
[1722269010133,20.0,187.6,187.52,5.3327]
[1722269010317,5.331,187.59,187.51,13.3324]
[1722269010521,20.0,187.62,187.51,13.3324]
[1722269010839,5.3306,187.6,187.52,45.0]
[1722269011025,20.0,187.63,187.52,45.0]
[1722269011236,5.3304,187.61,187.52,50.3327]
[1722269011426,20.0,187.63,187.56,5.3316]
[1722269011637,20.0,187.63,187.54,5.3321]
[1722269011814,20.0,187.63,187.55,45.0]
[1722269012152,20.0,187.63,187.56,18.6604]
[1722269012322,2.14881752,187.66,187.57,61.53824752]
[1722269012323,5.3289,187.66,187.57,61.53824752]
[1722269012826,0.7645621,187.69,187.59,13.3265]
[1722269013027,0.7645621,187.69,187.6,45.0]
[1722269013828,0.7645621,187.69,187.61,5.3301]
[1722269014141,0.7645621,187.69,187.62,45.0]
[1722269015044,0.7645621,187.69,187.59,13.3265]
[1722269015342,20.7645621,187.69,187.6,45.0]
[1722269015843,20.7645621,187.69,187.62,5.3297]
[1722269016057,26.0925621,187.69,187.61,5.3301]
[1722269016344,26.0925621,187.69,187.62,45.0]
[1722269016723,0.7645621,187.69,187.62,64.3933]
[1722269016929,0.7645621,187.69,187.64,5.3291]
[1722269017250,0.7645621,187.69,187.66,5.3285]
[1722269017550,0.7645621,187.69,187.66,5.3287]
[1722269018047,0.7645621,187.69,187.67,45.0]
[1722269018254,0.7645621,187.69,187.68,18.6487]
[1722269018550,0.7645621,187.69,187.66,45.0]
[1722269019131,0.7645621,187.69,187.68,5.3282]
[1722269019337,0.7645621,187.69,187.68,50.3282]
[1722269020942,0.7645621,187.69,187.68,51.56345782]
[1722269021143,5.3248,187.8,187.71,5.3272]
[1722269021343,2.11180187,187.82,187.7,13.319]
[1722269021551,5.56966548,187.83,187.68,45.0]
[1722269021747,5.3259,187.77,187.68,5.3281]
[1722269022052,5.3253,187.78,187.7,5.3276]
[1722269022239,5.3253,187.78,187.68,13.3199]
[1722269022443,5.3256,187.77,187.71,45.0]
[1722269022639,5.326,187.76,187.68,13.3199]
[1722269022836,5.3256,187.77,187.69,45.0]
[1722269023048,5.3254,187.78,187.69,45.0]
[1722269023348,36.11966548,187.83,187.71,13.3182]
[1722269023534,20.34,187.82,187.71,13.3182]
[1722269023935,5.3253,187.79,187.71,18.6455]
[1722269024156,5.3254,187.78,187.71,13.3182]
[1722269024454,25.04740352,187.84,187.73,13.3163]
[1722269024754,298.9302674,187.89,187.76,5.3257]
[1722269024755,6.4642,187.88,187.76,5.3257]
[1722269024956,6.4642,187.88,187.75,13.3148]
[1722269025140,13.3077,187.86,187.74,61.1903]
[1722269025326,5.3245,187.81,187.74,61.1903]
[1722269025532,6.4642,187.88,187.74,61.1903]
[1722269025533,13.3101,187.83,187.74,61.1903]
[1722269025748,13.3101,187.83,187.7,22.2544]
[1722269026052,13.312,187.8,187.7,16.1903]
[1722269026255,26.6183,187.79,187.7,16.1903]
[1722269026437,5.3274,187.71,187.65,16.0948]
[1722269026639,13.3149,187.76,187.65,16.0948]
[1722269026640,5.3277,187.7,187.65,16.0948]
[1722269026960,13.3149,187.76,187.65,16.0948]
[1722269027260,5.3271,187.72,187.65,16.0948]
[1722269027427,20.17,187.75,187.65,16.0948]
[1722269027628,5.3277,187.7,187.65,16.0948]
[1722269027834,5.3273,187.71,187.65,16.0948]
[1722269028528,0.17,187.74,187.65,16.0948]
[1722269028732,0.17,187.74,187.66,1.06556434]
[1722269029252,20.17,187.75,187.66,13.3219]
[1722269029253,20.0,187.75,187.66,13.3219]
[1722269029458,22.14764917,187.78,187.66,13.3219]
[1722269029660,5.3262,187.75,187.68,5.3282]
[1722269029851,5.3262,187.75,187.66,13.3219]
[1722269030047,5.3265,187.74,187.66,18.6506]
[1722269030352,0.34,187.77,187.65,16.0948]
[1722269030533,5.327,187.73,187.65,21.4236]
[1722269030739,5.3274,187.71,187.65,16.0948]
[1722269030953,0.34,187.77,187.65,16.0948]
[1722269030954,13.3149,187.76,187.65,16.0948]
[1722269031256,5.3279,187.7,187.62,5.3298]
[1722269031454,5.3279,187.69,187.62,13.3246]
[1722269031637,5.3275,187.71,187.62,13.3246]
[1722269031967,20.0,187.75,187.65,13.3226]
[1722269032259,20.0,187.75,187.67,18.649]
[1722269032260,5.3262,187.75,187.67,18.649]
[1722269032465,20.0,187.78,187.63,13.3236]
[1722269032776,13.3155,187.76,187.62,1.06525779]
[1722269032945,20.0,187.75,187.61,22.8329]